Workbook

Sheet Heats
A1: Drivers per heat | B1: 4 | E1: Driver | F1: Lane | G1: Laps | H1: Hundredths | I1: Best lap
A2: Drivers | B2: =COUNTIF(A5:A99,"*") -> 16 | E2: Tony S | F2: White | G2: 21 | H2: 75 | I2: 6.303
A3: Shuffle | B3: 1 | E3: Al T | F3: Blue | G3: 26 | H3: 25 | I3: 6.167
A4: Names | B4: Chassis | E4: Al W | F4: Red | G4: 26 | H4: 75 | I4: 6.075
A5: Tony S | B5: MG | E5: Marc T | F5: Yellow | G5: 24 | H5: 85 | I5: 6.284
A6: Al T | B6: MG
A7: Al W | B7: MG | E7: Driver | F7: Lane | G7: Laps | H7: Hundredths | I7: Best lap
A8: Marc T | B8: MG | E8: Al T | F8: White | G8: 22 | H8: 30 | I8: 6.103
A9: Mike D | B9: MG | E9: Tony S | F9: Blue | G9: 25 | H9: 40 | I9: 6
A10: Callum N | B10: MG | E10: Marc T | F10: Red | G10: 26 | H10: 25 | I10: 6.256
A11: Clive H | B11: MG | E11: Al W | F11: Yellow | G11: 24 | H11: 25 | I11: 6.194
A12: Aston | B12: MG
A13: Andy W | B13: MG | E13: Driver | F13: Lane | G13: Laps | H13: Hundredths | I13: Best lap
A14: Henry T | B14: MG | E14: Dave H | F14: White | G14: 24 | H14: 55 | I14: 6.652
A15: Ray G | B15: MG | E15: Louis T | F15: Blue | G15: 20 | H15: 35 | I15: 7.211
A16: Mike R | B16: MG | E16: Bob S | F16: Red | G16: 18 | H16: 85 | I16: 7.361
A17: Dave H | B17: MG | E17: Deane W | F17: Yellow | G17: 22 | H17: 10 | I17: 6.806
A18: Louis T | B18: MG
A19: Bob S | B19: MG | E19: Driver | F19: Lane | G19: Laps | H19: Hundredths | I19: Best lap
A20: Deane W | B20: MG | E20: Louis T | F20: White | G20: 18 | H20: 70 | I20: 7.309
E21: Dave H | F21: Blue | G21: 27 | H21: 80 | I21: 6.068
E22: Deane W | F22: Red | G22: 27 | H22: 90 | I22: 6.112
E23: Bob S | F23: Yellow | G23: 18 | H23: 10 | I23: 7.696
E25: Driver | F25: Lane | G25: Laps | H25: Hundredths | I25: Best lap
E26: Andy W | F26: White | G26: 24 | H26: 50 | I26: 5.707
E27: Henry T | F27: Blue | G27: 25 | H27: 65 | I27: 6.376
E28: Ray G | F28: Red | G28: 19 | H28: 65 | I28: 7.387
E29: Mike R | F29: Yellow | G29: 22 | H29: 75 | I29: 6.687
E31: Driver | F31: Lane | G31: Laps | H31: Hundredths | I31: Best lap
E32: Henry T | F32: White | G32: 20 | H32: 45 | I32: 7.219
E33: Andy W | F33: Blue | G33: 29 | H33: 70 | I33: 5.11
E34: Mike R | F34: Red | G34: 24 | H34: 65 | I34: 6.283
E35: Ray G | F35: Yellow | G35: 21 | H35: 15 | I35: 7.133
E37: Driver | F37: Lane | G37: Laps | H37: Hundredths | I37: Best lap
E38: Mike D | F38: White | G38: 29 | H38: 30 | I38: 5.46
E39: Callum N | F39: Blue | G39: 23 | H39: 50 | I39: 5.466
E40: Clive H | F40: Red | G40: 29 | H40: 75 | I40: 5.556
E41: Aston | F41: Yellow | G41: 0 | I41: -.---
E43: Driver | F43: Lane | G43: Laps | H43: Hundredths | I43: Best lap
E44: Callum N | F44: White | G44: 26 | H44: 55 | I44: 5.673
E45: Mike D | F45: Blue | G45: 31 | H45: 25 | I45: 5.394
E46: Aston | F46: Red | G46: 0 | I46: -.---
E47: Clive H | F47: Yellow | G47: 25 | H47: 55 | I47: 5.78
E49: Driver | F49: Lane | G49: Laps | H49: Hundredths | I49: Best lap
E50: Al W | F50: White | G50: 26 | H50: 35 | I50: 6.101
E51: Marc T | F51: Blue | G51: 27 | H51: 10 | I51: 6.272
E52: Tony S | F52: Red | G52: 23 | H52: 65 | I52: 6.273
E53: Al T | F53: Yellow | G53: 23 | H53: 40 | I53: 6.315
E55: Driver | F55: Lane | G55: Laps | H55: Hundredths | I55: Best lap
E56: Marc T | F56: White | G56: 22 | H56: 40 | I56: 6.293
E57: Al W | F57: Blue | G57: 26 | H57: 60 | I57: 5.909
E58: Al T | F58: Red | G58: 24 | H58: 45 | I58: 5.987
E59: Tony S | F59: Yellow | G59: 20 | H59: 70 | I59: 6.688
E61: Driver | F61: Lane | G61: Laps | H61: Hundredths | I61: Best lap
E62: Bob S | F62: White | G62: 19 | H62: 15 | I62: 6.684
E63: Deane W | F63: Blue | G63: 29 | H63: 55 | I63: 5.832
E64: Dave H | F64: Red | G64: 23 | H64: 90 | I64: 6.043
E65: Louis T | F65: Yellow | G65: 15 | H65: 10 | I65: 8.698
E67: Driver | F67: Lane | G67: Laps | H67: Hundredths | I67: Best lap
E68: Deane W | F68: White | G68: 25 | H68: 50 | I68: 6.192
E69: Bob S | F69: Blue | G69: 20 | H69: 80 | I69: 7.053
E70: Louis T | F70: Red | G70: 16 | H70: 40 | I70: 8.302
E71: Dave H | F71: Yellow | G71: 23 | H71: 90 | I71: 6.684
E73: Driver | F73: Lane | G73: Laps | H73: Hundredths | I73: Best lap
E74: Ray G | F74: White | G74: 19 | H74: 70 | I74: 6.936
E75: Mike R | F75: Blue | G75: 26 | H75: 80 | I75: 5.908
E76: Andy W | F76: Red | G76: 30 | H76: 20 | I76: 5.473
E77: Henry T | F77: Yellow | G77: 19 | H77: 90 | I77: 7.563
E79: Driver | F79: Lane | G79: Laps | H79: Hundredths | I79: Best lap
E80: Mike R | F80: White | G80: 26 | H80: 10 | I80: 6.14
E81: Ray G | F81: Blue | G81: 19 | H81: 10 | I81: 6.402
E82: Henry T | F82: Red | G82: 18 | H82: 75 | I82: 6.48
E83: Andy W | F83: Yellow | G83: 25 | H83: 55 | I83: 5.565
E85: Driver | F85: Lane | G85: Laps | H85: Hundredths | I85: Best lap
E86: Clive H | F86: White | G86: 28 | H86: 30 | I86: 5.641
E87: Aston | F87: Blue | G87: 0 | I87: -.---
E88: Mike D | F88: Red | G88: 29 | H88: 30 | I88: 5.694
E89: Callum N | F89: Yellow | G89: 19 | H89: 85 | I89: 5.878
E91: Driver | F91: Lane | G91: Laps | H91: Hundredths | I91: Best lap
E92: Aston | F92: White | G92: 0 | I92: -.---
E93: Clive H | F93: Blue | G93: 30 | H93: 55 | I93: 5.464
E94: Callum N | F94: Red | G94: 23 | H94: 55 | I94: 5.927
E95: Mike D | F95: Yellow | G95: 27 | H95: 65 | I95: 5.754

Sheet Qualifying results
D1: White | F1: Blue | H1: Red | J1: Yellow | L1: Overall
A2: P | C2: =Heats!$B$4 -> Chassis | D2: Laps | E2: Best lap | F2: Laps | G2: Best lap | H2: Laps | I2: Best lap | J2: Laps | K2: Best lap | L2: Total | M2: Drop | N2: Best 3 | O2: Gap | P2: Best lap
A3: 1 | B3: Mike D | C3: =Heats!$B$9 -> MG | D3: =Heats!$G$38+Heats!$H$38/100 -> 29.3 | E3: =Heats!$I$38 -> 5.46 | F3: =Heats!$G$45+Heats!$H$45/100 -> 31.25 | G3: =Heats!$I$45 -> 5.394 | H3: =Heats!$G$88+Heats!$H$88/100 -> 29.3 | I3: =Heats!$I$88 -> 5.694 | J3: =Heats!$G$95+Heats!$H$95/100 -> 27.65 | K3: =Heats!$I$95 -> 5.754 | L3: =D3+F3+H3+J3 -> 117.5 | M3: =MIN(D3,F3,H3,J3) -> 27.65 | N3: =L3-M3 -> 89.85 | P3: =IF(MIN(E3,G3,I3,K3)=0, "-.---", MIN(E3,G3,I3,K3)) -> 5.394
A4: 2 | B4: Clive H | C4: =Heats!$B$11 -> MG | D4: =Heats!$G$86+Heats!$H$86/100 -> 28.3 | E4: =Heats!$I$86 -> 5.641 | F4: =Heats!$G$93+Heats!$H$93/100 -> 30.55 | G4: =Heats!$I$93 -> 5.464 | H4: =Heats!$G$40+Heats!$H$40/100 -> 29.75 | I4: =Heats!$I$40 -> 5.556 | J4: =Heats!$G$47+Heats!$H$47/100 -> 25.55 | K4: =Heats!$I$47 -> 5.78 | L4: =D4+F4+H4+J4 -> 114.15 | M4: =MIN(D4,F4,H4,J4) -> 25.55 | N4: =L4-M4 -> 88.6 | O4: =N3-N4 -> 1.25 | P4: =IF(MIN(E4,G4,I4,K4)=0, "-.---", MIN(E4,G4,I4,K4)) -> 5.464
A5: 3 | B5: Andy W | C5: =Heats!$B$13 -> MG | D5: =Heats!$G$26+Heats!$H$26/100 -> 24.5 | E5: =Heats!$I$26 -> 5.707 | F5: =Heats!$G$33+Heats!$H$33/100 -> 29.7 | G5: =Heats!$I$33 -> 5.11 | H5: =Heats!$G$76+Heats!$H$76/100 -> 30.2 | I5: =Heats!$I$76 -> 5.473 | J5: =Heats!$G$83+Heats!$H$83/100 -> 25.55 | K5: =Heats!$I$83 -> 5.565 | L5: =D5+F5+H5+J5 -> 109.95 | M5: =MIN(D5,F5,H5,J5) -> 24.5 | N5: =L5-M5 -> 85.45 | O5: =N3-N5 -> 4.4 | P5: =IF(MIN(E5,G5,I5,K5)=0, "-.---", MIN(E5,G5,I5,K5)) -> 5.11
A6: 4 | B6: Deane W | C6: =Heats!$B$20 -> MG | D6: =Heats!$G$68+Heats!$H$68/100 -> 25.5 | E6: =Heats!$I$68 -> 6.192 | F6: =Heats!$G$63+Heats!$H$63/100 -> 29.55 | G6: =Heats!$I$63 -> 5.832 | H6: =Heats!$G$22+Heats!$H$22/100 -> 27.9 | I6: =Heats!$I$22 -> 6.112 | J6: =Heats!$G$17+Heats!$H$17/100 -> 22.1 | K6: =Heats!$I$17 -> 6.806 | L6: =D6+F6+H6+J6 -> 105.05 | M6: =MIN(D6,F6,H6,J6) -> 22.1 | N6: =L6-M6 -> 82.95 | O6: =N3-N6 -> 6.9 | P6: =IF(MIN(E6,G6,I6,K6)=0, "-.---", MIN(E6,G6,I6,K6)) -> 5.832
A7: 5 | B7: Al W | C7: =Heats!$B$7 -> MG | D7: =Heats!$G$50+Heats!$H$50/100 -> 26.35 | E7: =Heats!$I$50 -> 6.101 | F7: =Heats!$G$57+Heats!$H$57/100 -> 26.6 | G7: =Heats!$I$57 -> 5.909 | H7: =Heats!$G$4+Heats!$H$4/100 -> 26.75 | I7: =Heats!$I$4 -> 6.075 | J7: =Heats!$G$11+Heats!$H$11/100 -> 24.25 | K7: =Heats!$I$11 -> 6.194 | L7: =D7+F7+H7+J7 -> 103.95 | M7: =MIN(D7,F7,H7,J7) -> 24.25 | N7: =L7-M7 -> 79.7 | O7: =N3-N7 -> 10.15 | P7: =IF(MIN(E7,G7,I7,K7)=0, "-.---", MIN(E7,G7,I7,K7)) -> 5.909
A8: 6 | B8: Marc T | C8: =Heats!$B$8 -> MG | D8: =Heats!$G$56+Heats!$H$56/100 -> 22.4 | E8: =Heats!$I$56 -> 6.293 | F8: =Heats!$G$51+Heats!$H$51/100 -> 27.1 | G8: =Heats!$I$51 -> 6.272 | H8: =Heats!$G$10+Heats!$H$10/100 -> 26.25 | I8: =Heats!$I$10 -> 6.256 | J8: =Heats!$G$5+Heats!$H$5/100 -> 24.85 | K8: =Heats!$I$5 -> 6.284 | L8: =D8+F8+H8+J8 -> 100.6 | M8: =MIN(D8,F8,H8,J8) -> 22.4 | N8: =L8-M8 -> 78.2 | O8: =N3-N8 -> 11.65 | P8: =IF(MIN(E8,G8,I8,K8)=0, "-.---", MIN(E8,G8,I8,K8)) -> 6.256
A9: 7 | B9: Mike R | C9: =Heats!$B$16 -> MG | D9: =Heats!$G$80+Heats!$H$80/100 -> 26.1 | E9: =Heats!$I$80 -> 6.14 | F9: =Heats!$G$75+Heats!$H$75/100 -> 26.8 | G9: =Heats!$I$75 -> 5.908 | H9: =Heats!$G$34+Heats!$H$34/100 -> 24.65 | I9: =Heats!$I$34 -> 6.283 | J9: =Heats!$G$29+Heats!$H$29/100 -> 22.75 | K9: =Heats!$I$29 -> 6.687 | L9: =D9+F9+H9+J9 -> 100.3 | M9: =MIN(D9,F9,H9,J9) -> 22.75 | N9: =L9-M9 -> 77.55 | O9: =N3-N9 -> 12.3 | P9: =IF(MIN(E9,G9,I9,K9)=0, "-.---", MIN(E9,G9,I9,K9)) -> 5.908
A10: 8 | B10: Dave H | C10: =Heats!$B$17 -> MG | D10: =Heats!$G$14+Heats!$H$14/100 -> 24.55 | E10: =Heats!$I$14 -> 6.652 | F10: =Heats!$G$21+Heats!$H$21/100 -> 27.8 | G10: =Heats!$I$21 -> 6.068 | H10: =Heats!$G$64+Heats!$H$64/100 -> 23.9 | I10: =Heats!$I$64 -> 6.043 | J10: =Heats!$G$71+Heats!$H$71/100 -> 23.9 | K10: =Heats!$I$71 -> 6.684 | L10: =D10+F10+H10+J10 -> 100.15 | M10: =MIN(D10,F10,H10,J10) -> 23.9 | N10: =L10-M10 -> 76.25 | O10: =N3-N10 -> 13.6 | P10: =IF(MIN(E10,G10,I10,K10)=0, "-.---", MIN(E10,G10,I10,K10)) -> 6.043
A11: 9 | B11: Al T | C11: =Heats!$B$6 -> MG | D11: =Heats!$G$8+Heats!$H$8/100 -> 22.3 | E11: =Heats!$I$8 -> 6.103 | F11: =Heats!$G$3+Heats!$H$3/100 -> 26.25 | G11: =Heats!$I$3 -> 6.167 | H11: =Heats!$G$58+Heats!$H$58/100 -> 24.45 | I11: =Heats!$I$58 -> 5.987 | J11: =Heats!$G$53+Heats!$H$53/100 -> 23.4 | K11: =Heats!$I$53 -> 6.315 | L11: =D11+F11+H11+J11 -> 96.4 | M11: =MIN(D11,F11,H11,J11) -> 22.3 | N11: =L11-M11 -> 74.1 | O11: =N3-N11 -> 15.75 | P11: =IF(MIN(E11,G11,I11,K11)=0, "-.---", MIN(E11,G11,I11,K11)) -> 5.987
A12: 10 | B12: Callum N | C12: =Heats!$B$10 -> MG | D12: =Heats!$G$44+Heats!$H$44/100 -> 26.55 | E12: =Heats!$I$44 -> 5.673 | F12: =Heats!$G$39+Heats!$H$39/100 -> 23.5 | G12: =Heats!$I$39 -> 5.466 | H12: =Heats!$G$94+Heats!$H$94/100 -> 23.55 | I12: =Heats!$I$94 -> 5.927 | J12: =Heats!$G$89+Heats!$H$89/100 -> 19.85 | K12: =Heats!$I$89 -> 5.878 | L12: =D12+F12+H12+J12 -> 93.45 | M12: =MIN(D12,F12,H12,J12) -> 19.85 | N12: =L12-M12 -> 73.6 | O12: =N3-N12 -> 16.25 | P12: =IF(MIN(E12,G12,I12,K12)=0, "-.---", MIN(E12,G12,I12,K12)) -> 5.466
A13: 11 | B13: Tony S | C13: =Heats!$B$5 -> MG | D13: =Heats!$G$2+Heats!$H$2/100 -> 21.75 | E13: =Heats!$I$2 -> 6.303 | F13: =Heats!$G$9+Heats!$H$9/100 -> 25.4 | G13: =Heats!$I$9 -> 6 | H13: =Heats!$G$52+Heats!$H$52/100 -> 23.65 | I13: =Heats!$I$52 -> 6.273 | J13: =Heats!$G$59+Heats!$H$59/100 -> 20.7 | K13: =Heats!$I$59 -> 6.688 | L13: =D13+F13+H13+J13 -> 91.5 | M13: =MIN(D13,F13,H13,J13) -> 20.7 | N13: =L13-M13 -> 70.8 | O13: =N3-N13 -> 19.05 | P13: =IF(MIN(E13,G13,I13,K13)=0, "-.---", MIN(E13,G13,I13,K13)) -> 6
A14: 12 | B14: Henry T | C14: =Heats!$B$14 -> MG | D14: =Heats!$G$32+Heats!$H$32/100 -> 20.45 | E14: =Heats!$I$32 -> 7.219 | F14: =Heats!$G$27+Heats!$H$27/100 -> 25.65 | G14: =Heats!$I$27 -> 6.376 | H14: =Heats!$G$82+Heats!$H$82/100 -> 18.75 | I14: =Heats!$I$82 -> 6.48 | J14: =Heats!$G$77+Heats!$H$77/100 -> 19.9 | K14: =Heats!$I$77 -> 7.563 | L14: =D14+F14+H14+J14 -> 84.75 | M14: =MIN(D14,F14,H14,J14) -> 18.75 | N14: =L14-M14 -> 66 | O14: =N3-N14 -> 23.85 | P14: =IF(MIN(E14,G14,I14,K14)=0, "-.---", MIN(E14,G14,I14,K14)) -> 6.376
A15: 13 | B15: Ray G | C15: =Heats!$B$15 -> MG | D15: =Heats!$G$74+Heats!$H$74/100 -> 19.7 | E15: =Heats!$I$74 -> 6.936 | F15: =Heats!$G$81+Heats!$H$81/100 -> 19.1 | G15: =Heats!$I$81 -> 6.402 | H15: =Heats!$G$28+Heats!$H$28/100 -> 19.65 | I15: =Heats!$I$28 -> 7.387 | J15: =Heats!$G$35+Heats!$H$35/100 -> 21.15 | K15: =Heats!$I$35 -> 7.133 | L15: =D15+F15+H15+J15 -> 79.6 | M15: =MIN(D15,F15,H15,J15) -> 19.1 | N15: =L15-M15 -> 60.5 | O15: =N3-N15 -> 29.35 | P15: =IF(MIN(E15,G15,I15,K15)=0, "-.---", MIN(E15,G15,I15,K15)) -> 6.402
A16: 14 | B16: Bob S | C16: =Heats!$B$19 -> MG | D16: =Heats!$G$62+Heats!$H$62/100 -> 19.15 | E16: =Heats!$I$62 -> 6.684 | F16: =Heats!$G$69+Heats!$H$69/100 -> 20.8 | G16: =Heats!$I$69 -> 7.053 | H16: =Heats!$G$16+Heats!$H$16/100 -> 18.85 | I16: =Heats!$I$16 -> 7.361 | J16: =Heats!$G$23+Heats!$H$23/100 -> 18.1 | K16: =Heats!$I$23 -> 7.696 | L16: =D16+F16+H16+J16 -> 76.9 | M16: =MIN(D16,F16,H16,J16) -> 18.1 | N16: =L16-M16 -> 58.8 | O16: =N3-N16 -> 31.05 | P16: =IF(MIN(E16,G16,I16,K16)=0, "-.---", MIN(E16,G16,I16,K16)) -> 6.684
A17: 15 | B17: Louis T | C17: =Heats!$B$18 -> MG | D17: =Heats!$G$20+Heats!$H$20/100 -> 18.7 | E17: =Heats!$I$20 -> 7.309 | F17: =Heats!$G$15+Heats!$H$15/100 -> 20.35 | G17: =Heats!$I$15 -> 7.211 | H17: =Heats!$G$70+Heats!$H$70/100 -> 16.4 | I17: =Heats!$I$70 -> 8.302 | J17: =Heats!$G$65+Heats!$H$65/100 -> 15.1 | K17: =Heats!$I$65 -> 8.698 | L17: =D17+F17+H17+J17 -> 70.55 | M17: =MIN(D17,F17,H17,J17) -> 15.1 | N17: =L17-M17 -> 55.45 | O17: =N3-N17 -> 34.4 | P17: =IF(MIN(E17,G17,I17,K17)=0, "-.---", MIN(E17,G17,I17,K17)) -> 7.211
A18: 16 | B18: Aston | C18: =Heats!$B$12 -> MG | D18: =Heats!$G$92+Heats!$H$92/100 -> 0 | E18: =Heats!$I$92 -> -.--- | F18: =Heats!$G$87+Heats!$H$87/100 -> 0 | G18: =Heats!$I$87 -> -.--- | H18: =Heats!$G$46+Heats!$H$46/100 -> 0 | I18: =Heats!$I$46 -> -.--- | J18: =Heats!$G$41+Heats!$H$41/100 -> 0 | K18: =Heats!$I$41 -> -.--- | L18: =D18+F18+H18+J18 -> 0 | M18: =MIN(D18,F18,H18,J18) -> 0 | N18: =L18-M18 -> 0 | O18: =N3-N18 -> 89.85 | P18: =IF(MIN(E18,G18,I18,K18)=0, "-.---", MIN(E18,G18,I18,K18)) -> -.---
A19: 17 | L19: =D19+F19+H19+J19 -> 0 | M19: =MIN(D19,F19,H19,J19) -> 0 | N19: =L19-M19 -> 0 | O19: =N3-N19 -> 89.85 | P19: =IF(MIN(E19,G19,I19,K19)=0, "-.---", MIN(E19,G19,I19,K19)) -> -.---
A20: 18 | L20: =D20+F20+H20+J20 -> 0 | M20: =MIN(D20,F20,H20,J20) -> 0 | N20: =L20-M20 -> 0 | O20: =N3-N20 -> 89.85 | P20: =IF(MIN(E20,G20,I20,K20)=0, "-.---", MIN(E20,G20,I20,K20)) -> -.---
A21: 19 | L21: =D21+F21+H21+J21 -> 0 | M21: =MIN(D21,F21,H21,J21) -> 0 | N21: =L21-M21 -> 0 | O21: =N3-N21 -> 89.85 | P21: =IF(MIN(E21,G21,I21,K21)=0, "-.---", MIN(E21,G21,I21,K21)) -> -.---
A22: 20 | L22: =D22+F22+H22+J22 -> 0 | M22: =MIN(D22,F22,H22,J22) -> 0 | N22: =L22-M22 -> 0 | O22: =N3-N22 -> 89.85 | P22: =IF(MIN(E22,G22,I22,K22)=0, "-.---", MIN(E22,G22,I22,K22)) -> -.---
A23: 21 | L23: =D23+F23+H23+J23 -> 0 | M23: =MIN(D23,F23,H23,J23) -> 0 | N23: =L23-M23 -> 0 | O23: =N3-N23 -> 89.85 | P23: =IF(MIN(E23,G23,I23,K23)=0, "-.---", MIN(E23,G23,I23,K23)) -> -.---
A24: 22 | L24: =D24+F24+H24+J24 -> 0 | M24: =MIN(D24,F24,H24,J24) -> 0 | N24: =L24-M24 -> 0 | O24: =N3-N24 -> 89.85 | P24: =IF(MIN(E24,G24,I24,K24)=0, "-.---", MIN(E24,G24,I24,K24)) -> -.---

Sheet Finals
F1: Final | J1: Overall | S1: Best lap time | Y1: Best laps
A2: P | B2: Final | C2: Q | D2: Driver | E2: Chassis | F2: Lane | G2: Laps | H2: Gap | I2: Best lap | J2: Best laps | K2: Best lap | M2: A Final | N2: Lane | O2: laps | P2: tenths | Q2: best Lap | S2: P | T2: Driver | U2: Chassis | V2: best lap | W2: Gap | Y2: P | Z2: Driver | AA2: Chassis | AB2: best laps | AC2: Gap
A3: 1 | B3: A | C3: 1 | D3: ='Qualifying results'!$B$3 -> Mike D | E3: ='Qualifying results'!$C$3 -> MG | F3: B | G3: =IF(ISNA(VLOOKUP(F3, $N$3:$Q$6, 2, FALSE)), 0, VLOOKUP(F3, $N$3:$Q$6, 2, FALSE)+VLOOKUP(F3, $N$3:$Q$6, 3, FALSE)/10) -> 31.25 | I3: =IF(ISNA(VLOOKUP(F3, $N$3:$Q$6, 4, FALSE)), "-.---", VLOOKUP(F3, $N$3:$Q$6, 4, FALSE)) -> 5.317 | J3: =MAX(G3,'Qualifying results'!$J$3,'Qualifying results'!$H$3,'Qualifying results'!$F$3,'Qualifying results'!$D$3) -> 31.25 | K3: =MIN(I3,'Qualifying results'!$K$3,'Qualifying results'!$I$3,'Qualifying results'!$G$3,'Qualifying results'!$E$3) -> 5.317 | N3: W | O3: 28 | P3: 1 | Q3: 5.334 | S3: 1 | T3: =$D$5 -> Andy W | U3: =$E$5 -> MG | V3: =$K$5 -> 5.11 | Y3: 1 | Z3: =$D$3 -> Mike D | AA3: =$E$3 -> MG | AB3: =$J$3 -> 31.25
A4: 2 | B4: A | C4: 2 | D4: ='Qualifying results'!$B$4 -> Clive H | E4: ='Qualifying results'!$C$4 -> MG | F4: R | G4: =IF(ISNA(VLOOKUP(F4, $N$3:$Q$6, 2, FALSE)), 0, VLOOKUP(F4, $N$3:$Q$6, 2, FALSE)+VLOOKUP(F4, $N$3:$Q$6, 3, FALSE)/10) -> 30.05 | H4: =$G$3-$G$4 -> 1.2 | I4: =IF(ISNA(VLOOKUP(F4, $N$3:$Q$6, 4, FALSE)), "-.---", VLOOKUP(F4, $N$3:$Q$6, 4, FALSE)) -> 5.381 | J4: =MAX(G4,'Qualifying results'!$J$4,'Qualifying results'!$H$4,'Qualifying results'!$F$4,'Qualifying results'!$D$4) -> 30.55 | K4: =MIN(I4,'Qualifying results'!$K$4,'Qualifying results'!$I$4,'Qualifying results'!$G$4,'Qualifying results'!$E$4) -> 5.381 | N4: B | O4: 31 | P4: 2.5 | Q4: 5.317 | S4: 2 | T4: =$D$3 -> Mike D | U4: =$E$3 -> MG | V4: =$K$3 -> 5.317 | W4: =V4-$V$3 -> 0.207 | Y4: 2 | Z4: =$D$4 -> Clive H | AA4: =$E$4 -> MG | AB4: =$J$4 -> 30.55 | AC4: =$AB$3-AB4 -> 0.7
A5: 3 | B5: A | C5: 3 | D5: ='Qualifying results'!$B$5 -> Andy W | E5: ='Qualifying results'!$C$5 -> MG | F5: W | G5: =IF(ISNA(VLOOKUP(F5, $N$3:$Q$6, 2, FALSE)), 0, VLOOKUP(F5, $N$3:$Q$6, 2, FALSE)+VLOOKUP(F5, $N$3:$Q$6, 3, FALSE)/10) -> 28.1 | H5: =$G$3-$G$5 -> 3.15 | I5: =IF(ISNA(VLOOKUP(F5, $N$3:$Q$6, 4, FALSE)), "-.---", VLOOKUP(F5, $N$3:$Q$6, 4, FALSE)) -> 5.334 | J5: =MAX(G5,'Qualifying results'!$J$5,'Qualifying results'!$H$5,'Qualifying results'!$F$5,'Qualifying results'!$D$5) -> 30.2 | K5: =MIN(I5,'Qualifying results'!$K$5,'Qualifying results'!$I$5,'Qualifying results'!$G$5,'Qualifying results'!$E$5) -> 5.11 | N5: R | O5: 30 | P5: 0.5 | Q5: 5.381 | S5: 3 | T5: =$D$4 -> Clive H | U5: =$E$4 -> MG | V5: =$K$4 -> 5.381 | W5: 0.271 | Y5: 3 | Z5: =$D$5 -> Andy W | AA5: =$E$5 -> MG | AB5: =$J$5 -> 30.2 | AC5: 1.05
A6: 4 | B6: A | C6: =$C$7 -> 7 | D6: =$D$7 -> Mike R | E6: =$E$7 -> MG | F6: Y | G6: =IF(ISNA(VLOOKUP(F6, $N$3:$Q$6, 2, FALSE)), 0, VLOOKUP(F6, $N$3:$Q$6, 2, FALSE)+VLOOKUP(F6, $N$3:$Q$6, 3, FALSE)/10) -> 26.45 | H6: =$G$3-$G$6 -> 4.8 | I6: =IF(ISNA(VLOOKUP(F6, $N$3:$Q$6, 4, FALSE)), "-.---", VLOOKUP(F6, $N$3:$Q$6, 4, FALSE)) -> 6.054 | J6: =MAX(G6,$J$7) -> 27.55 | K6: =MIN(I6,$K$7) -> 5.794 | N6: Y | O6: 26 | P6: 4.5 | Q6: 6.054 | S6: 4 | T6: =$D$14 -> Callum N | U6: =$E$14 -> MG | V6: =$K$14 -> 5.466 | W6: 0.356 | Y6: 4 | Z6: =$D$8 -> Deane W | AA6: =$E$8 -> MG | AB6: =$J$8 -> 29.55 | AC6: 1.7
A7: - | B7: B | C7: =$C$11 -> 7 | D7: =$D$11 -> Mike R | E7: =$E$11 -> MG | F7: W | G7: =IF(ISNA(VLOOKUP(F7, $N$7:$Q$10, 2, FALSE)), 0, VLOOKUP(F7, $N$7:$Q$10, 2, FALSE)+VLOOKUP(F7, $N$7:$Q$10, 3, FALSE)/10) -> 27.3 | I7: =IF(ISNA(VLOOKUP(F7, $N$7:$Q$10, 4, FALSE)), "-.---", VLOOKUP(F7, $N$7:$Q$10, 4, FALSE)) -> 5.861 | J7: =MAX(G7,$J$11) -> 27.55 | K7: =MIN(I7,$K$11) -> 5.794 | M7: B Final | N7: W | O7: 27 | P7: 3 | Q7: 5.861 | S7: 5 | T7: =$D$8 -> Deane W | U7: =$E$8 -> MG | V7: =$K$8 -> 5.719 | W7: 0.609 | Y7: 5 | Z7: =$D$12 -> Dave H | AA7: =$E$12 -> MG | AB7: =$J$12 -> 27.8 | AC7: 3.45
A8: 5 | B8: B | C8: 4 | D8: ='Qualifying results'!$B$6 -> Deane W | E8: ='Qualifying results'!$C$6 -> MG | F8: B | G8: =IF(ISNA(VLOOKUP(F8, $N$7:$Q$10, 2, FALSE)), 0, VLOOKUP(F8, $N$7:$Q$10, 2, FALSE)+VLOOKUP(F8, $N$7:$Q$10, 3, FALSE)/10) -> 27 | H8: =$G$7-$G$8 -> 0.3 | I8: =IF(ISNA(VLOOKUP(F8, $N$7:$Q$10, 4, FALSE)), "-.---", VLOOKUP(F8, $N$7:$Q$10, 4, FALSE)) -> 5.719 | J8: =MAX(G8,'Qualifying results'!$J$6,'Qualifying results'!$H$6,'Qualifying results'!$F$6,'Qualifying results'!$D$6) -> 29.55 | K8: =MIN(I8,'Qualifying results'!$K$6,'Qualifying results'!$I$6,'Qualifying results'!$G$6,'Qualifying results'!$E$6) -> 5.719 | N8: B | O8: 27 | P8: 0 | Q8: 5.719 | S8: 6 | T8: =$D$6 -> Mike R | U8: =$E$6 -> MG | V8: =$K$6 -> 5.794 | W8: 0.684 | Y8: 6 | Z8: =$D$6 -> Mike R | AA8: =$E$6 -> MG | AB8: =$J$6 -> 27.55 | AC8: 3.7
A9: 6 | B9: B | C9: 5 | D9: ='Qualifying results'!$B$7 -> Al W | E9: ='Qualifying results'!$C$7 -> MG | F9: R | G9: =IF(ISNA(VLOOKUP(F9, $N$7:$Q$10, 2, FALSE)), 0, VLOOKUP(F9, $N$7:$Q$10, 2, FALSE)+VLOOKUP(F9, $N$7:$Q$10, 3, FALSE)/10) -> 26.1 | H9: =$G$7-$G$9 -> 1.2 | I9: =IF(ISNA(VLOOKUP(F9, $N$7:$Q$10, 4, FALSE)), "-.---", VLOOKUP(F9, $N$7:$Q$10, 4, FALSE)) -> 5.812 | J9: =MAX(G9,'Qualifying results'!$J$7,'Qualifying results'!$H$7,'Qualifying results'!$F$7,'Qualifying results'!$D$7) -> 26.75 | K9: =MIN(I9,'Qualifying results'!$K$7,'Qualifying results'!$I$7,'Qualifying results'!$G$7,'Qualifying results'!$F$7) -> 5.812 | N9: R | O9: 26 | P9: 1 | Q9: 5.812 | S9: 7 | T9: =$D$9 -> Al W | U9: =$E$9 -> MG | V9: =$K$9 -> 5.812 | W9: 0.702 | Y9: 7 | Z9: =$D$10 -> Marc T | AA9: =$E$10 -> MG | AB9: =$J$10 -> 27.1 | AC9: 4.15
A10: 7 | B10: B | C10: 6 | D10: ='Qualifying results'!$B$8 -> Marc T | E10: ='Qualifying results'!$C$8 -> MG | F10: Y | G10: =IF(ISNA(VLOOKUP(F10, $N$7:$Q$10, 2, FALSE)), 0, VLOOKUP(F10, $N$7:$Q$10, 2, FALSE)+VLOOKUP(F10, $N$7:$Q$10, 3, FALSE)/10) -> 25.85 | H10: =$G$7-$G$10 -> 1.45 | I10: =IF(ISNA(VLOOKUP(F10, $N$7:$Q$10, 4, FALSE)), "-.---", VLOOKUP(F10, $N$7:$Q$10, 4, FALSE)) -> 6.358 | J10: =MAX(G10,'Qualifying results'!$J$8,'Qualifying results'!$H$8,'Qualifying results'!$F$8,'Qualifying results'!$D$8) -> 27.1 | K10: =MIN(I10,'Qualifying results'!$K$8,'Qualifying results'!$I$8,'Qualifying results'!$G$8,'Qualifying results'!$E$8) -> 6.256 | N10: Y | O10: 25 | P10: 8.5 | Q10: 6.358 | S10: 8 | T10: =$D$13 -> Al T | U10: =$E$13 -> MG | V10: =$K$13 -> 5.987 | W10: 0.877 | Y10: 8 | Z10: =$D$14 -> Callum N | AA10: =$E$14 -> MG | AB10: =$J$14 -> 27.1 | AC10: 4.15
A11: - | B11: C | C11: 7 | D11: ='Qualifying results'!$B$9 -> Mike R | E11: ='Qualifying results'!$C$9 -> MG | F11: W | G11: =IF(ISNA(VLOOKUP(F11, $N$11:$Q$14, 2, FALSE)), 0, VLOOKUP(F11, $N$11:$Q$14, 2, FALSE)+VLOOKUP(F11, $N$11:$Q$14, 3, FALSE)/10) -> 27.55 | I11: =IF(ISNA(VLOOKUP(F11, $N$11:$Q$14, 4, FALSE)), "-.---", VLOOKUP(F11, $N$11:$Q$14, 4, FALSE)) -> 5.794 | J11: =MAX(G11,'Qualifying results'!$J$9,'Qualifying results'!$H$9,'Qualifying results'!$F$9,'Qualifying results'!$D$9) -> 27.55 | K11: =MIN(I11,'Qualifying results'!$K$9,'Qualifying results'!$I$9,'Qualifying results'!$G$9,'Qualifying results'!$E$9) -> 5.794 | M11: C Final | N11: W | O11: 27 | P11: 5.5 | Q11: 5.794 | S11: 9 | T11: =$D$16 -> Tony S | U11: =$E$16 -> MG | V11: =$K$16 -> 6 | W11: 0.89 | Y11: 9 | Z11: =$D$9 -> Al W | AA11: =$E$9 -> MG | AB11: =$J$9 -> 26.75 | AC11: 4.5
A12: 8 | B12: C | C12: 8 | D12: ='Qualifying results'!$B$10 -> Dave H | E12: ='Qualifying results'!$C$10 -> MG | F12: B | G12: =IF(ISNA(VLOOKUP(F12, $N$11:$Q$14, 2, FALSE)), 0, VLOOKUP(F12, $N$11:$Q$14, 2, FALSE)+VLOOKUP(F12, $N$11:$Q$14, 3, FALSE)/10) -> 26.2 | H12: =$G$11-$G$12 -> 1.35 | I12: =IF(ISNA(VLOOKUP(F12, $N$11:$Q$14, 4, FALSE)), "-.---", VLOOKUP(F12, $N$11:$Q$14, 4, FALSE)) -> 6.141 | J12: =MAX(G12,'Qualifying results'!$J$10,'Qualifying results'!$H$10,'Qualifying results'!$F$10,'Qualifying results'!$D$10) -> 27.8 | K12: =MIN(I12,'Qualifying results'!$K$10,'Qualifying results'!$I$10,'Qualifying results'!$G$10,'Qualifying results'!$E$10) -> 6.043 | N12: B | O12: 26 | P12: 2 | Q12: 6.141 | S12: 10 | T12: =$D$12 -> Dave H | U12: =$E$12 -> MG | V12: =$K$12 -> 6.043 | W12: 0.933 | Y12: 10 | Z12: =$D$13 -> Al T | AA12: =$E$13 -> MG | AB12: =$J$13 -> 26.25 | AC12: 5
A13: 9 | B13: C | C13: 9 | D13: ='Qualifying results'!$B$11 -> Al T | E13: ='Qualifying results'!$C$11 -> MG | F13: R | G13: =IF(ISNA(VLOOKUP(F13, $N$11:$Q$14, 2, FALSE)), 0, VLOOKUP(F13, $N$11:$Q$14, 2, FALSE)+VLOOKUP(F13, $N$11:$Q$14, 3, FALSE)/10) -> 23.75 | H13: =$G$11-$G$13 -> 3.8 | I13: =IF(ISNA(VLOOKUP(F13, $N$11:$Q$14, 4, FALSE)), "-.---", VLOOKUP(F13, $N$11:$Q$14, 4, FALSE)) -> 6.382 | J13: =MAX(G13,'Qualifying results'!$J$11,'Qualifying results'!$H$11,'Qualifying results'!$F$11,'Qualifying results'!$D$11) -> 26.25 | K13: =MIN(I13,'Qualifying results'!$K$11,'Qualifying results'!$I$11,'Qualifying results'!$G$11,'Qualifying results'!$E$11) -> 5.987 | N13: R | O13: 23 | P13: 7.5 | Q13: 6.382 | S13: 11 | T13: =$D$10 -> Marc T | U13: =$E$10 -> MG | V13: =$K$10 -> 6.256 | W13: 1.146 | Y13: 11 | Z13: =$D$18 -> Henry T | AA13: =$E$18 -> MG | AB13: =$J$18 -> 25.65 | AC13: 5.6
A14: 10 | B14: C | C14: =$C$15 -> 10 | D14: =$D$15 -> Callum N | E14: =$E$15 -> MG | F14: Y | G14: =IF(ISNA(VLOOKUP(F14, $N$11:$Q$14, 2, FALSE)), 0, VLOOKUP(F14, $N$11:$Q$14, 2, FALSE)+VLOOKUP(F14, $N$11:$Q$14, 3, FALSE)/10) -> 23.1 | H14: =$G$11-$G$14 -> 4.45 | I14: =IF(ISNA(VLOOKUP(F14, $N$11:$Q$14, 4, FALSE)), "-.---", VLOOKUP(F14, $N$11:$Q$14, 4, FALSE)) -> 6.125 | J14: =MAX(G14,$J$15) -> 27.1 | K14: =MIN(I14,$K$15) -> 5.466 | N14: Y | O14: 23 | P14: 1 | Q14: 6.125 | S14: 12 | T14: =$D$17 -> Ray G | U14: =$E$17 -> MG | V14: =$K$17 -> 6.322 | W14: 1.212 | Y14: 12 | Z14: =$D$16 -> Tony S | AA14: =$E$16 -> MG | AB14: =$J$16 -> 25.4 | AC14: 5.85
A15: - | B15: D | C15: 10 | D15: ='Qualifying results'!$B$12 -> Callum N | E15: ='Qualifying results'!$C$12 -> MG | F15: B | G15: =IF(ISNA(VLOOKUP(F15, $N$15:$Q$18, 2, FALSE)), 0, VLOOKUP(F15, $N$15:$Q$18, 2, FALSE)+VLOOKUP(F15, $N$15:$Q$18, 3, FALSE)/10) -> 27.1 | I15: =IF(ISNA(VLOOKUP(F15, $N$15:$Q$18, 4, FALSE)), "-.---", VLOOKUP(F15, $N$15:$Q$18, 4, FALSE)) -> 5.953 | J15: =MAX(G15,'Qualifying results'!$J$12,'Qualifying results'!$H$12,'Qualifying results'!$F$12,'Qualifying results'!$D$12) -> 27.1 | K15: =MIN(I15,'Qualifying results'!$K$12,'Qualifying results'!$I$12,'Qualifying results'!$G$12,'Qualifying results'!$E$12) -> 5.466 | M15: D Final | N15: W | O15: 22 | P15: 5 | Q15: 6.834 | S15: 13 | T15: =$D$18 -> Henry T | U15: =$E$18 -> MG | V15: =$K$18 -> 6.376 | W15: 1.266 | Y15: 13 | Z15: =$D$17 -> Ray G | AA15: =$E$17 -> MG | AB15: =$J$17 -> 22.65 | AC15: 8.6
A16: 11 | B16: D | C16: 11 | D16: ='Qualifying results'!$B$13 -> Tony S | E16: ='Qualifying results'!$C$13 -> MG | F16: R | G16: =IF(ISNA(VLOOKUP(F16, $N$15:$Q$18, 2, FALSE)), 0, VLOOKUP(F16, $N$15:$Q$18, 2, FALSE)+VLOOKUP(F16, $N$15:$Q$18, 3, FALSE)/10) -> 25.1 | H16: =$G$15-$G$16 -> 2 | I16: =IF(ISNA(VLOOKUP(F16, $N$15:$Q$18, 4, FALSE)), "-.---", VLOOKUP(F16, $N$15:$Q$18, 4, FALSE)) -> 6.387 | J16: =MAX(G16,'Qualifying results'!$J$13,'Qualifying results'!$H$13,'Qualifying results'!$F$13,'Qualifying results'!$D$13) -> 25.4 | K16: =MIN(I16,'Qualifying results'!$K$13,'Qualifying results'!$I$13,'Qualifying results'!$G$13,'Qualifying results'!$E$13) -> 6 | N16: B | O16: 27 | P16: 1 | Q16: 5.953 | S16: 14 | T16: =$D$20 -> Bob S | U16: =$E$20 -> MG | V16: =$K$20 -> 6.684 | W16: 1.574 | Y16: 14 | Z16: =$D$20 -> Bob S | AA16: =$E$20 -> MG | AB16: =$J$20 -> 20.8 | AC16: 10.45
A17: 12 | B17: D | C17: =$C$19 -> 13 | D17: =$D$19 -> Ray G | E17: =$E$19 -> MG | F17: W | G17: =IF(ISNA(VLOOKUP(F17, $N$15:$Q$18, 2, FALSE)), 0, VLOOKUP(F17, $N$15:$Q$18, 2, FALSE)+VLOOKUP(F17, $N$15:$Q$18, 3, FALSE)/10) -> 22.5 | H17: =$G$15-$G$17 -> 4.6 | I17: =IF(ISNA(VLOOKUP(F17, $N$15:$Q$18, 4, FALSE)), "-.---", VLOOKUP(F17, $N$15:$Q$18, 4, FALSE)) -> 6.834 | J17: =MAX(G17,$J$19) -> 22.65 | K17: =MIN(I17,$K$19) -> 6.322 | N17: R | O17: 25 | P17: 1 | Q17: 6.387 | S17: 15 | T17: =$D$21 -> Louis T | U17: =$E$21 -> MG | V17: =$K$21 -> 7.211 | W17: 2.101 | Y17: 15 | Z17: =$D$21 -> Louis T | AA17: =$E$21 -> MG | AB17: =$J$21 -> 20.35 | AC17: 10.9
A18: 13 | B18: D | C18: 12 | D18: ='Qualifying results'!$B$14 -> Henry T | E18: ='Qualifying results'!$C$14 -> MG | F18: Y | G18: =IF(ISNA(VLOOKUP(F18, $N$15:$Q$18, 2, FALSE)), 0, VLOOKUP(F18, $N$15:$Q$18, 2, FALSE)+VLOOKUP(F18, $N$15:$Q$18, 3, FALSE)/10) -> 19.1 | H18: =$G$15-$G$18 -> 8 | I18: =IF(ISNA(VLOOKUP(F18, $N$15:$Q$18, 4, FALSE)), "-.---", VLOOKUP(F18, $N$15:$Q$18, 4, FALSE)) -> 7.378 | J18: =MAX(G18,'Qualifying results'!$J$14,'Qualifying results'!$H$14,'Qualifying results'!$F$14,'Qualifying results'!$D$14) -> 25.65 | K18: =MIN(I18,'Qualifying results'!$K$14,'Qualifying results'!$I$14,'Qualifying results'!$G$14,'Qualifying results'!$E$14) -> 6.376 | N18: Y | O18: 19 | P18: 1 | Q18: 7.378 | S18: 16 | W18: -5.11 | Y18: 16 | Z18: =$D$22 -> Aston | AA18: =$E$22 -> MG | AB18: =$J$22 -> 0 | AC18: 31.25
A19: - | B19: E | C19: 13 | D19: ='Qualifying results'!$B$15 -> Ray G | E19: ='Qualifying results'!$C$15 -> MG | F19: B | G19: =IF(ISNA(VLOOKUP(F19, $N$19:$Q$22, 2, FALSE)), 0, VLOOKUP(F19, $N$19:$Q$22, 2, FALSE)+VLOOKUP(F19, $N$19:$Q$22, 3, FALSE)/10) -> 22.65 | I19: =IF(ISNA(VLOOKUP(F19, $N$19:$Q$22, 4, FALSE)), "-.---", VLOOKUP(F19, $N$19:$Q$22, 4, FALSE)) -> 6.322 | J19: =MAX(G19,'Qualifying results'!$J$15,'Qualifying results'!$H$15,'Qualifying results'!$F$15,'Qualifying results'!$D$15) -> 22.65 | K19: =MIN(I19,'Qualifying results'!$K$15,'Qualifying results'!$I$15,'Qualifying results'!$G$15,'Qualifying results'!$E$15) -> 6.322 | M19: E Final | N19: W | O19: 17 | P19: 4.5 | Q19: 7.928 | S19: 17 | T19: =$D$24 -> 0 | U19: =$E$24 -> 0 | V19: =$K$24 -> 0 | W19: -5.11 | Y19: 17 | Z19: =$D$24 -> 0 | AA19: =$E$24 -> 0 | AB19: =$J$24 -> 0 | AC19: 31.25
A20: 14 | B20: E | C20: 14 | D20: ='Qualifying results'!$B$16 -> Bob S | E20: ='Qualifying results'!$C$16 -> MG | F20: R | G20: =IF(ISNA(VLOOKUP(F20, $N$19:$Q$22, 2, FALSE)), 0, VLOOKUP(F20, $N$19:$Q$22, 2, FALSE)+VLOOKUP(F20, $N$19:$Q$22, 3, FALSE)/10) -> 17.65 | H20: =$G$19-$G$20 -> 5 | I20: =IF(ISNA(VLOOKUP(F20, $N$19:$Q$22, 4, FALSE)), "-.---", VLOOKUP(F20, $N$19:$Q$22, 4, FALSE)) -> 7.139 | J20: =MAX(G20,'Qualifying results'!$J$16,'Qualifying results'!$H$16,'Qualifying results'!$F$16,'Qualifying results'!$D$16) -> 20.8 | K20: =MIN(I20,'Qualifying results'!$K$16,'Qualifying results'!$I$16,'Qualifying results'!$G$16,'Qualifying results'!$E$16) -> 6.684 | N20: B | O20: 22 | P20: 6.5 | Q20: 6.322 | S20: 18 | T20: =$D$25 -> 0 | U20: =$E$25 -> 0 | V20: =$K$25 -> 0 | W20: -5.11 | Y20: 18 | Z20: =$D$25 -> 0 | AA20: =$E$25 -> 0 | AB20: =$J$25 -> 0 | AC20: 31.25
A21: 15 | B21: E | C21: 15 | D21: ='Qualifying results'!$B$17 -> Louis T | E21: ='Qualifying results'!$C$17 -> MG | F21: W | G21: =IF(ISNA(VLOOKUP(F21, $N$19:$Q$22, 2, FALSE)), 0, VLOOKUP(F21, $N$19:$Q$22, 2, FALSE)+VLOOKUP(F21, $N$19:$Q$22, 3, FALSE)/10) -> 17.45 | H21: =$G$19-$G$21 -> 5.2 | I21: =IF(ISNA(VLOOKUP(F21, $N$19:$Q$22, 4, FALSE)), "-.---", VLOOKUP(F21, $N$19:$Q$22, 4, FALSE)) -> 7.928 | J21: =MAX(G21,'Qualifying results'!$J$17,'Qualifying results'!$H$17,'Qualifying results'!$F$17,'Qualifying results'!$D$17) -> 20.35 | K21: =MIN(I21,'Qualifying results'!$K$17,'Qualifying results'!$I$17,'Qualifying results'!$G$17,'Qualifying results'!$E$17) -> 7.211 | N21: R | O21: 17 | P21: 6.5 | Q21: 7.139 | S21: 19 | T21: =$D$26 -> 0 | U21: =$E$26 -> 0 | V21: =$K$26 -> 0 | W21: -5.11 | Y21: 19 | Z21: =$D$26 -> 0 | AA21: =$E$26 -> 0 | AB21: =$J$26 -> 0 | AC21: 31.25
A22: 16 | B22: E | C22: =$C$23 -> 16 | D22: =$D$23 -> Aston | E22: =$E$23 -> MG | G22: =IF(ISNA(VLOOKUP(F22, $N$19:$Q$22, 2, FALSE)), 0, VLOOKUP(F22, $N$19:$Q$22, 2, FALSE)+VLOOKUP(F22, $N$19:$Q$22, 3, FALSE)/10) -> 0 | H22: =$G$19-$G$22 -> 22.65 | I22: =IF(ISNA(VLOOKUP(F22, $N$19:$Q$22, 4, FALSE)), "-.---", VLOOKUP(F22, $N$19:$Q$22, 4, FALSE)) -> -.--- | J22: =MAX(G22,$J$23) -> 0 | K22: =MIN(I22,$K$23) -> 0 | N22: Y | O22: 0 | Q22: -.--- | S22: 20 | T22: =$D$28 -> 0 | U22: =$E$28 -> 0 | V22: =$K$28 -> 0 | W22: -5.11 | Y22: 20 | Z22: =$D$28 -> 0 | AA22: =$E$28 -> 0 | AB22: =$J$28 -> 0 | AC22: 31.25
A23: - | B23: F | C23: 16 | D23: ='Qualifying results'!$B$18 -> Aston | E23: ='Qualifying results'!$C$18 -> MG | G23: =IF(ISNA(VLOOKUP(F23, $N$23:$Q$26, 2, FALSE)), 0, VLOOKUP(F23, $N$23:$Q$26, 2, FALSE)+VLOOKUP(F23, $N$23:$Q$26, 3, FALSE)/10) -> 0 | I23: =IF(ISNA(VLOOKUP(F23, $N$23:$Q$26, 4, FALSE)), "-.---", VLOOKUP(F23, $N$23:$Q$26, 4, FALSE)) -> -.--- | J23: =MAX(G23,'Qualifying results'!$J$18,'Qualifying results'!$H$18,'Qualifying results'!$F$18,'Qualifying results'!$D$18) -> 0 | K23: =MIN(I23,'Qualifying results'!$K$18,'Qualifying results'!$I$18,'Qualifying results'!$G$18,'Qualifying results'!$E$18) -> 0 | M23: F Final | N23: W | S23: 21 | T23: =$D$29 -> 0 | U23: =$E$29 -> 0 | V23: =$K$29 -> 0 | W23: -5.11 | Y23: 21 | Z23: =$D$29 -> 0 | AA23: =$E$29 -> 0 | AB23: =$J$29 -> 0 | AC23: 31.25
A24: 17 | B24: F | C24: 17 | D24: ='Qualifying results'!$B$19 -> 0 | E24: ='Qualifying results'!$C$19 -> 0 | G24: =IF(ISNA(VLOOKUP(F24, $N$23:$Q$26, 2, FALSE)), 0, VLOOKUP(F24, $N$23:$Q$26, 2, FALSE)+VLOOKUP(F24, $N$23:$Q$26, 3, FALSE)/10) -> 0 | I24: =IF(ISNA(VLOOKUP(F24, $N$23:$Q$26, 4, FALSE)), "-.---", VLOOKUP(F24, $N$23:$Q$26, 4, FALSE)) -> -.--- | J24: =MAX(G24,'Qualifying results'!$J$19,'Qualifying results'!$H$19,'Qualifying results'!$F$19,'Qualifying results'!$D$19) -> 0 | K24: =MIN(I24,'Qualifying results'!$K$19,'Qualifying results'!$I$19,'Qualifying results'!$G$19,'Qualifying results'!$E$19) -> 0 | N24: B | S24: 22 | T24: =$D$30 -> 0 | U24: =$E$30 -> 0 | V24: =$K$30 -> 0 | W24: -5.11 | Y24: 22 | Z24: =$D$30 -> 0 | AA24: =$E$30 -> 0 | AB24: =$J$30 -> 0 | AC24: 31.25
A25: 18 | B25: F | C25: 18 | D25: ='Qualifying results'!$B$20 -> 0 | E25: ='Qualifying results'!$C$20 -> 0 | G25: =IF(ISNA(VLOOKUP(F25, $N$23:$Q$26, 2, FALSE)), 0, VLOOKUP(F25, $N$23:$Q$26, 2, FALSE)+VLOOKUP(F25, $N$23:$Q$26, 3, FALSE)/10) -> 0 | I25: =IF(ISNA(VLOOKUP(F25, $N$23:$Q$26, 4, FALSE)), "-.---", VLOOKUP(F25, $N$23:$Q$26, 4, FALSE)) -> -.--- | J25: =MAX(G25,'Qualifying results'!$J$20,'Qualifying results'!$H$20,'Qualifying results'!$F$20,'Qualifying results'!$D$20) -> 0 | K25: =MIN(I25,'Qualifying results'!$K$20,'Qualifying results'!$I$20,'Qualifying results'!$G$20,'Qualifying results'!$E$20) -> 0 | N25: R
A26: 19 | B26: F | C26: =$C$27 -> 19 | D26: =$D$27 -> 0 | E26: =$E$27 -> 0 | G26: =IF(ISNA(VLOOKUP(F26, $N$23:$Q$26, 2, FALSE)), 0, VLOOKUP(F26, $N$23:$Q$26, 2, FALSE)+VLOOKUP(F26, $N$23:$Q$26, 3, FALSE)/10) -> 0 | I26: =IF(ISNA(VLOOKUP(F26, $N$23:$Q$26, 4, FALSE)), "-.---", VLOOKUP(F26, $N$23:$Q$26, 4, FALSE)) -> -.--- | J26: =MAX(G26,$J$27) -> 0 | K26: =MIN(I26,$K$27) -> 0 | N26: Y
A27: - | B27: G | C27: 19 | D27: ='Qualifying results'!$B$21 -> 0 | E27: ='Qualifying results'!$C$21 -> 0 | G27: =IF(ISNA(VLOOKUP(F27, $N$27:$Q$30, 2, FALSE)), 0, VLOOKUP(F27, $N$27:$Q$30, 2, FALSE)+VLOOKUP(F27, $N$27:$Q$30, 3, FALSE)/10) -> 0 | I27: =IF(ISNA(VLOOKUP(F27, $N$27:$Q$30, 4, FALSE)), "-.---", VLOOKUP(F27, $N$27:$Q$30, 4, FALSE)) -> -.--- | J27: =MAX(G27,'Qualifying results'!$J$21,'Qualifying results'!$H$21,'Qualifying results'!$F$21,'Qualifying results'!$D$21) -> 0 | K27: =MIN(I27,'Qualifying results'!$K$21,'Qualifying results'!$I$21,'Qualifying results'!$G$21,'Qualifying results'!$E$21) -> 0 | M27: G Final | N27: W
A28: 20 | B28: G | C28: 20 | D28: ='Qualifying results'!$B$22 -> 0 | E28: ='Qualifying results'!$C$22 -> 0 | G28: =IF(ISNA(VLOOKUP(F28, $N$27:$Q$30, 2, FALSE)), 0, VLOOKUP(F28, $N$27:$Q$30, 2, FALSE)+VLOOKUP(F28, $N$27:$Q$30, 3, FALSE)/10) -> 0 | I28: =IF(ISNA(VLOOKUP(F28, $N$27:$Q$30, 4, FALSE)), "-.---", VLOOKUP(F28, $N$27:$Q$30, 4, FALSE)) -> -.--- | J28: =MAX(G28,'Qualifying results'!$J$22,'Qualifying results'!$H$22,'Qualifying results'!$F$22,'Qualifying results'!$D$22) -> 0 | K28: =MIN(I28,'Qualifying results'!$K$22,'Qualifying results'!$I$22,'Qualifying results'!$G$22,'Qualifying results'!$E$22) -> 0 | N28: B
A29: 21 | B29: G | C29: 21 | D29: ='Qualifying results'!$B$23 -> 0 | E29: ='Qualifying results'!$C$23 -> 0 | G29: =IF(ISNA(VLOOKUP(F29, $N$27:$Q$30, 2, FALSE)), 0, VLOOKUP(F29, $N$27:$Q$30, 2, FALSE)+VLOOKUP(F29, $N$27:$Q$30, 3, FALSE)/10) -> 0 | I29: =IF(ISNA(VLOOKUP(F29, $N$27:$Q$30, 4, FALSE)), "-.---", VLOOKUP(F29, $N$27:$Q$30, 4, FALSE)) -> -.--- | J29: =MAX(G29,'Qualifying results'!$J$23,'Qualifying results'!$H$23,'Qualifying results'!$F$23,'Qualifying results'!$D$23) -> 0 | K29: =MIN(I29,'Qualifying results'!$K$23,'Qualifying results'!$I$23,'Qualifying results'!$G$23,'Qualifying results'!$E$23) -> 0 | N29: R
A30: 22 | B30: G | C30: 22 | D30: ='Qualifying results'!$B$24 -> 0 | E30: ='Qualifying results'!$C$24 -> 0 | G30: =IF(ISNA(VLOOKUP(F30, $N$27:$Q$30, 2, FALSE)), 0, VLOOKUP(F30, $N$27:$Q$30, 2, FALSE)+VLOOKUP(F30, $N$27:$Q$30, 3, FALSE)/10) -> 0 | I30: =IF(ISNA(VLOOKUP(F30, $N$27:$Q$30, 4, FALSE)), "-.---", VLOOKUP(F30, $N$27:$Q$30, 4, FALSE)) -> -.--- | J30: =MAX(G30,'Qualifying results'!$J$24,'Qualifying results'!$H$24,'Qualifying results'!$F$24,'Qualifying results'!$D$24) -> 0 | K30: =MIN(I30,'Qualifying results'!$K$24,'Qualifying results'!$I$24,'Qualifying results'!$G$24,'Qualifying results'!$E$24) -> 0 | N30: Y

Sheet Settings
A1: Lanes | B1: =COUNTIF(A3:A10,"*") -> 4
A2: Colours
A3: White
A4: Blue
A5: Red
A6: Yellow
